bitfinex/quotes_SOLUSD_20240909
["timestamp","ask_amount","ask_price","bid_price","bid_amount"]
[1725920198731,1.28718485,134.88,134.85,0.8365995]
[1725920199333,0.12549,134.87,134.85,0.8365995]
[1725920200652,1.28718485,134.88,134.85,0.8365995]
[1725920202754,0.12549,134.87,134.85,0.8365995]
[1725920205456,0.12549,134.88,134.85,0.8365995]
[1725920208434,45.12549,134.88,134.85,0.8365995]
[1725920210343,17.3843145,134.89,134.85,0.8365995]
[1725920211551,0.12549,134.88,134.85,0.8365995]
[1725920212252,1.2874145,134.89,134.85,0.8365995]
[1725920212433,13.83908294,134.91,134.85,0.8365995]
[1725920214561,0.12549,134.9,134.85,0.8365995]
[1725920216343,13.83908294,134.91,134.85,72.8834995]
[1725920216658,6.1224,134.98,134.85,72.8834995]
[1725920216659,14.09611954,134.98,134.89,22.82013844]
[1725920216860,14.09611954,134.98,134.91,50.0]
[1725920217159,6.1224,135.03,134.92,20.0]
[1725920218331,0.12549,135.02,134.92,20.0]
[1725920218755,0.12549,135.02,134.9,20.0]
[1725920219343,45.12549,135.02,134.9,20.0]
[1725920219559,6.1224,135.03,134.91,50.0]
[1725920219760,6.1224,135.03,134.92,20.0]
[1725920220167,6.1224,135.03,134.9,20.0]
[1725920220460,17.33863681,135.04,134.92,15.7012]
[1725920220645,17.33863681,135.04,134.94,6.5537]
[1725920220964,17.33863681,135.04,134.95,20.0]
[1725920221449,1.28643681,135.04,134.95,20.0]
[1725920222361,1.28643681,135.04,134.96,1.48144885]
[1725920222543,15.16,135.08,134.97,15.7012]
[1725920222865,16.44595216,135.08,134.98,21.48134739]
[1725920223165,16.44595216,135.08,134.99,1.48134718]
[1725920224455,0.12549,135.06,134.98,20.0]
[1725920225168,0.12549,135.06,134.97,15.7012]
[1725920225339,0.12549,135.06,134.94,6.5537]
[1725920225848,0.12549,135.04,134.94,6.5537]
[1725920226059,45.12549,135.04,134.94,6.5537]
[1725920227364,6.3251,135.05,134.94,6.5537]
[1725920227565,14.07610372,135.06,134.94,6.5537]
[1725920228144,14.07610372,135.06,134.95,20.0]
[1725920228842,0.12549,135.04,134.95,20.0]
[1725920229038,0.12549,135.04,134.94,6.5537]
[1725920232970,22.40549,135.04,134.94,6.5537]
[1725920233171,0.12549,135.02,134.94,6.5537]
[1725920233647,45.0,135.05,134.94,6.5537]
[1725920234459,45.0,135.05,134.95,20.0]
[1725920234660,14.07610372,135.06,134.95,20.0]
[1725920235372,36.35610372,135.06,134.95,20.0]
[1725920236060,45.12549,135.05,134.95,20.0]
[1725920243071,0.12549,135.03,134.95,20.0]
[1725920243668,1.28664915,135.04,134.96,1.48164377]
[1725920243870,1.28664915,135.04,134.95,20.0]
[1725920243871,14.07610372,135.06,134.97,15.9545]
[1725920245751,0.12549,135.04,134.97,15.9545]
[1725920258281,0.12549,135.04,134.98,6.121]
[1725920261264,0.12549,135.04,134.99,1.48138395]
[1725920261985,14.07610372,135.06,134.99,15.6494]
[1725920263383,0.12549,135.05,134.99,15.6494]
[1725920263967,14.07610372,135.06,135.0,18.38541496]
[1725920264182,22.28,135.12,135.0,36.90421783]
[1725920264485,1.28626091,135.11,135.0,36.90421783]
[1725920264896,40.27149075,135.11,135.0,26.5634]
[1725920265460,45.12549,135.1,135.0,26.5634]
[1725920267982,67.40549,135.1,135.0,26.5634]
[1725920268689,67.40549,135.1,135.0,6.5634]
[1725920273068,45.12549,135.1,135.0,6.5634]
[1725920273478,17.99149075,135.11,135.01,16.3702]
[1725920273670,17.99149075,135.11,135.01,32.79431783]
[1725920274771,0.12549,135.1,135.01,32.79431783]
[1725920275082,45.12549,135.1,135.01,32.79431783]
[1725920275684,45.12549,135.1,135.01,22.4535]
[1725920282569,45.12549,135.1,135.02,23.41963662]
[1725920285493,45.12549,135.1,135.02,21.9386]
[1725920286371,67.40549,135.1,135.02,21.9386]
[1725920286695,0.12549,135.08,135.02,21.9386]
[1725920290080,0.12549,135.08,135.03,1.48104829]
[1725920290283,0.12549,135.08,135.02,21.9386]
[1725920292190,1.28661894,135.09,135.04,22.4051]
[1725920292397,16.70522984,135.11,135.06,22.4051]
[1725920292797,16.70522984,135.11,135.07,1.48060007]
[1725920293186,16.70522984,135.11,135.06,22.4051]
[1725920294299,0.12549,135.1,135.06,22.4051]
[1725920294704,16.70522984,135.11,135.06,22.4051]
[1725920295299,3.77724599,135.16,135.07,42.4051]
[1725920296408,0.12549,135.15,135.07,42.4051]
[1725920296609,45.12549,135.15,135.07,42.4051]
[1725920296784,47.61656361,135.15,135.07,42.4051]
[1725920296986,45.12549,135.15,135.07,22.4051]
[1725920297307,0.12549,135.13,135.07,22.4051]
[1725920297510,45.12549,135.13,135.07,22.4051]
[1725920303702,18.92408844,135.14,135.1,22.2449]
[1725920303893,1.28617238,135.16,135.12,22.2449]
[1725920304093,19.58808678,135.21,135.13,11.82054593]
[1725920304297,19.58808678,135.21,135.14,22.8569]
[1725920304595,19.58808678,135.21,135.15,1.47965126]
[1725920304913,19.58808678,135.21,135.14,22.8569]
[1725920306799,45.12549,135.2,135.14,22.8569]
[1725920307414,0.12549,135.2,135.14,22.8569]
[1725920307822,45.12549,135.2,135.14,22.8569]
[1725920308197,67.40549,135.2,135.14,22.8569]
[1725920308398,0.12549,135.18,135.06,22.762]
[1725920308602,45.12549,135.18,135.06,22.762]
[1725920308799,45.12549,135.18,135.07,22.762]
[1725920310327,67.40549,135.18,135.07,22.762]
[1725920310816,0.12549,135.16,135.07,22.762]
[1725920311021,45.12549,135.16,135.07,22.762]
[1725920313516,0.12549,135.16,135.07,22.762]
[1725920314815,45.12549,135.16,135.07,22.762]
[1725920318229,0.12549,135.14,135.07,22.762]
[1725920318437,45.12549,135.16,135.07,22.762]
[1725920320123,67.40549,135.16,135.07,22.762]
[1725920320629,82.97009,135.16,135.07,22.762]
[1725920325229,86.05405002,135.16,135.07,22.762]
[1725920327116,87.74896078,135.16,135.07,22.762]
[1725920327529,22.40549,135.14,135.07,22.762]
[1725920327814,65.46896078,135.16,135.07,22.762]
[1725920327815,22.40549,135.12,135.07,22.762]
[1725920328015,41.79173226,135.12,135.07,22.762]
[1725920328215,0.12549,135.1,135.07,22.762]
[1725920330937,1.28922901,135.09,135.07,22.762]
[1725920331631,0.12549,135.08,135.07,22.762]
[1725920340656,0.12549,135.09,135.0,6.3342]
[1725920340844,0.12549,135.09,135.01,15.6222]
[1725920341837,0.12549,135.09,135.02,6.1396]
[1725920342555,1.28935405,135.1,135.04,6.1189]
[1725920342843,19.38624226,135.12,135.07,6.1189]
[1725920343149,19.38624226,135.12,135.08,1.48039412]
[1725920343925,0.12549,135.11,135.07,6.1189]
[1725920344245,0.12549,135.11,135.08,1.48041564]
[1725920344540,0.12549,135.11,135.07,6.1189]
[1725920345346,45.12549,135.11,135.07,6.1189]
[1725920346744,67.40549,135.11,135.06,16.2429]
[1725920346945,67.40549,135.11,135.04,6.18]
[1725920349547,45.12549,135.11,135.04,6.18]
[1725920353627,67.40549,135.11,135.04,6.18]
[1725920353850,22.28,135.09,134.99,29.78951776]
[1725920354063,16.4821,135.1,134.99,29.78951776]
[1725920354064,67.40549,135.08,134.99,29.78951776]
[1725920354226,67.40549,135.08,134.99,22.0649]
[1725920356145,45.12549,135.08,134.99,22.0649]
[1725920357147,67.40549,135.08,134.99,22.0649]
[1725920357759,45.12549,135.08,134.99,22.0649]
[1725920358750,41.66624226,135.12,135.0,50.0]
[1725920358951,41.66624226,135.12,135.02,21.4055]
[1725920360143,0.12549,135.1,135.02,21.4055]
[1725920361051,19.38624226,135.12,135.03,21.48067339]
[1725920361246,19.38624226,135.12,135.03,31.81454164]
[1725920361547,19.38624226,135.12,135.05,31.86446825]
[1725920361760,19.38624226,135.12,135.06,21.48017685]
[1725920362137,19.38624226,135.12,135.06,20.0]
[1725920363752,19.38624226,135.12,135.07,1.48017765]
[1725920364059,1.28844204,135.17,135.08,72.1481]
[1725920364245,23.74969754,135.19,135.11,22.1481]
[1725920364444,23.74969754,135.19,135.12,21.47964972]
[1725920364644,23.74969754,135.19,135.12,20.0]
[1725920365655,0.12549,135.18,135.12,20.0]
[1725920369254,23.74969754,135.19,135.13,1.47959985]
[1725920369457,22.28,135.26,135.14,22.922]
[1725920369660,22.28,135.26,135.15,21.47932671]
[1725920369661,22.02278653,135.26,135.15,21.47932671]
[1725920369957,1.28774568,135.23,135.15,21.47932671]
[1725920370345,22.02278653,135.26,135.16,110.8587]
[1725920370560,22.02278653,135.26,135.17,7.68755587]
[1725920370740,22.02278653,135.26,135.18,1.47902821]
[1725920371067,22.02278653,135.26,135.17,26.2086]
[1725920373459,0.12549,135.24,135.17,26.2086]
[1725920373657,0.12549,135.24,135.17,6.2086]
[1725920375641,0.3788895,135.25,135.17,6.2086]
[1725920375843,0.3788895,135.25,135.18,1.47908107]
[1725920376042,0.3788895,135.25,135.18,21.47908107]
[1725920376263,0.3788895,135.25,135.18,20.0]
[1725920376582,0.3788895,135.25,135.19,1.47905094]
[1725920376863,0.3788895,135.25,135.2,1.47904778]
[1725920377352,0.12549,135.24,135.17,6.2086]
[1725920378057,0.12549,135.24,135.18,21.47905685]
[1725920378670,0.12549,135.24,135.18,20.0]
[1725920378867,0.3788895,135.25,135.18,20.0]
[1725920380376,0.12549,135.24,135.18,20.0]
[1725920396381,0.12549,135.24,135.19,1.4790776]
[1725920397767,0.12549,135.24,135.18,20.0]
[1725920398097,0.12549,135.24,135.17,6.2086]
[1725920399782,0.12549,135.24,135.16,15.8587]
[1725920400963,0.12549,135.24,135.13,21.8836]
[1725920401186,0.12549,135.24,135.14,20.0]
[1725920401509,0.12549,135.24,135.15,1.47943645]
[1725920401695,0.12549,135.24,135.14,70.0]
[1725920403473,0.12549,135.24,135.14,20.0]
[1725920403982,45.12549,135.24,135.14,20.0]
[1725920404186,45.12549,135.24,135.15,1.47942087]
[1725920404376,0.12549,135.24,135.15,1.47942087]
[1725920404900,6.7523895,135.25,135.16,1.47921371]
[1725920405081,6.7523895,135.25,135.16,20.0]
[1725920405282,6.7523895,135.25,135.17,1.47903669]
[1725920405594,0.3788895,135.25,135.17,50.0]
[1725920405802,0.3788895,135.25,135.18,89.30933863]
[1725920406772,0.3788895,135.25,135.19,50.0]
[1725920406979,0.3788895,135.25,135.2,21.47864679]
[1725920407375,0.3788895,135.25,135.2,20.0]
[1725920407975,0.3788895,135.25,135.19,20.0]
[1725920408296,0.12549,135.24,135.19,20.0]
[1725920408480,0.12549,135.24,135.16,20.0]
[1725920408679,16.31549,135.24,135.16,20.0]
[1725920410099,16.31549,135.24,135.17,1.4791358]
[1725920410275,16.31549,135.24,135.16,20.0]
[1725920410276,16.31549,135.24,135.18,1.47902419]
[1725920413878,0.3788895,135.25,135.17,50.0]
[1725920414205,0.3788895,135.25,135.21,50.0]
[1725920414497,0.3788895,135.25,135.22,20.0]
[1725920415090,0.3788895,135.25,135.21,20.0]
[1725920415491,0.3788895,135.25,135.21,70.0]
[1725920415798,0.3788895,135.25,135.23,50.0]
[1725920415980,0.3788895,135.25,135.24,20.0]
[1725920418092,0.3788895,135.25,135.22,20.0]
[1725920418489,0.3788895,135.25,135.2,21.9393]
[1725920419203,0.3788895,135.25,135.21,45.0]
[1725920419399,0.3788895,135.25,135.2,21.9393]
[1725920420099,0.3788895,135.25,135.21,20.0]
[1725920424293,0.3788895,135.25,135.17,50.0]
[1725920424511,0.3788895,135.25,135.18,20.0]
[1725920425202,0.3788895,135.25,135.17,20.0]
[1725920425783,0.12549,135.24,135.16,7.71763938]
[1725920425983,0.12549,135.24,135.12,71.0715]
[1725920426307,51.8513895,135.25,135.08,65.0096]
[1725920426308,0.12549,135.22,135.08,65.0096]
[1725920426492,45.12549,135.22,135.08,71.0618]
[1725920426693,45.12549,135.22,135.09,7.73248975]
[1725920427414,58.37813289,135.22,135.09,7.73248975]
[1725920427710,6.3754,135.21,135.09,7.73248975]
[1725920428008,0.12549,135.19,135.09,7.73248975]
[1725920429599,0.12549,135.19,135.1,1.47984255]
[1725920429807,0.12549,135.19,135.09,7.73248975]
[1725920430192,0.12549,135.19,135.1,1.47968631]
[1725920430492,0.12549,135.19,135.11,1.47968909]
[1725920431284,0.12549,135.19,135.1,20.0]
[1725920434914,1.28823756,135.18,135.1,20.0]
[1725920435515,0.12549,135.17,135.1,20.0]
[1725920436015,15.64629,135.17,135.1,20.0]
[1725920436991,15.64629,135.17,135.07,20.0]
[1725920439818,0.12549,135.15,135.06,7.7313366]
[1725920439995,0.12549,135.15,135.05,6.6572]
[1725920440317,0.12549,135.15,135.04,73.55511759]
[1725920440503,45.12549,135.15,135.04,73.55511759]
[1725920441494,45.12549,135.15,135.05,20.0]
[1725920442416,0.12549,135.15,135.06,1.48013584]
[1725920443196,0.12549,135.15,135.06,51.48013584]
[1725920443413,0.12549,135.15,135.07,20.0]
[1725920447913,0.12549,135.15,135.08,1.48003715]
[1725920448216,0.12549,135.15,135.07,20.0]
[1725920453538,0.12549,135.15,135.05,20.0]
[1725920454509,0.12549,135.13,135.05,20.0]
[1725920455121,1.41424087,135.13,135.05,20.0]
[1725920455616,15.9943,135.1,135.04,7.73121759]
[1725920455923,15.9943,135.1,135.01,15.1025]
[1725920456922,15.9943,135.1,135.02,50.0]
[1725920457122,15.9943,135.1,135.03,20.0]
[1725920457617,15.9943,135.1,135.04,1.48051867]
[1725920458040,15.9943,135.1,135.03,20.0]
[1725920460229,6.2253,135.12,135.04,96.48028055]
[1725920460432,6.2253,135.12,135.05,21.48012868]
[1725920461033,6.2253,135.12,135.05,20.0]
[1725920461418,0.12549,135.11,135.03,20.0]
[1725920461621,0.12549,135.11,135.02,20.0]
[1725920461825,0.12549,135.11,135.02,70.0]
[1725920462925,6.2253,135.12,135.04,50.0]
[1725920463240,6.2253,135.12,135.05,20.0]
[1725920463822,6.2253,135.12,135.06,1.48027548]
[1725920464330,15.79029,135.13,135.06,1.48027548]
[1725920464842,15.6648,135.13,135.06,50.0]
[1725920465059,15.6648,135.13,135.07,20.0]
[1725920465334,7.73199787,135.18,135.07,20.0]
[1725920465335,15.4331,135.17,135.08,51.48001002]
[1725920465539,15.4331,135.17,135.09,20.0]
[1725920465838,15.4331,135.17,135.1,102.57277108]
[1725920466035,15.4331,135.17,135.11,21.47954531]
[1725920466444,13.48355507,135.22,135.11,21.47954531]
[1725920466445,13.48355507,135.22,135.13,50.0]
[1725920466623,13.48355507,135.22,135.14,20.12549]
[1725920466930,13.48355507,135.22,135.15,95.0]
[1725920467133,13.48355507,135.22,135.16,20.0]
[1725920468038,13.48355507,135.22,135.14,20.0]
[1725920468428,0.12549,135.21,135.14,20.0]
[1725920468639,0.12549,135.21,135.15,1.47930121]
[1725920468839,13.48355507,135.22,135.15,50.0]
[1725920469021,13.48355507,135.22,135.16,65.0]
[1725920469232,13.48355507,135.22,135.16,63.476]
[1725920469837,16.4339,135.23,135.16,63.476]
[1725920477152,0.3788895,135.25,135.17,51.47900778]
[1725920477329,0.3788895,135.25,135.18,21.47880599]
[1725920477531,0.3788895,135.25,135.21,50.0]
[1725920477745,0.3788895,135.25,135.22,1.47846571]
[1725920478050,0.3788895,135.25,135.23,50.0]
[1725920478624,0.3788895,135.25,135.22,20.0]
[1725920481044,0.3788895,135.25,135.17,56.2031]
[1725920481349,15.5809,135.24,135.15,50.0]
[1725920481659,15.5809,135.24,135.14,16.4262]
[1725920481947,0.12549,135.23,135.15,50.0]
[1725920482143,0.12549,135.23,135.11,50.0]
[1725920482528,0.12549,135.23,135.09,31.85470251]
[1725920482529,0.12549,135.23,135.13,50.0]
[1725920482838,0.12549,135.23,135.11,50.0]
[1725920483726,0.12549,135.23,135.1,16.14325298]
[1725920483926,0.12549,135.23,135.11,50.0]
[1725920484341,0.12549,135.23,135.13,50.0]
[1725920485048,0.12549,135.23,135.11,50.0]
[1725920485249,45.12549,135.23,135.12,20.0]
[1725920485443,0.12549,135.21,135.12,20.0]
[1725920486746,0.12549,135.21,135.1,20.0]
[1725920486942,45.12549,135.21,135.1,20.0]
[1725920487948,45.12549,135.21,135.11,51.47958285]
[1725920488139,0.12549,135.21,135.12,65.0]
[1725920488335,0.12549,135.21,135.13,1.47940096]
[1725920490452,0.12549,135.21,135.13,50.0]
[1725920491950,0.12549,135.21,135.12,65.0]
[1725920493247,0.12549,135.21,135.13,50.0]
[1725920493445,0.12549,135.21,135.12,65.0]
[1725920493642,15.2304,135.2,135.12,20.0]
[1725920493852,15.2304,135.2,135.11,20.0]
[1725920494044,15.2304,135.2,135.12,45.0]
[1725920495549,0.12549,135.19,135.11,20.0]
[1725920495753,0.12549,135.19,135.1,20.0]
[1725920496258,0.12549,135.19,135.11,1.47967335]
[1725920496851,0.12549,135.19,135.11,46.47967335]
[1725920497058,0.12549,135.19,135.12,20.0]
[1725920497467,15.2304,135.2,135.12,20.0]
[1725920498551,15.2304,135.2,135.12,70.0]
[1725920498754,15.2304,135.2,135.13,1.47946231]
[1725920499454,15.2304,135.2,135.13,46.47946231]
[1725920500445,15.2304,135.2,135.13,45.0]
[1725920500653,15.2304,135.2,135.14,1.47934519]
[1725920500857,15.2304,135.2,135.15,1.47932738]
[1725920501052,15.2304,135.2,135.14,70.0]
[1725920501363,6.2376,135.22,135.16,50.0]
[1725920501680,6.2376,135.22,135.17,21.47901549]
[1725920502074,6.2376,135.22,135.17,20.0]
[1725920503062,6.2376,135.22,135.16,20.0]
[1725920503368,6.2376,135.22,135.15,20.0]
[1725920503369,0.12549,135.21,135.15,20.0]
[1725920503546,0.12549,135.21,135.13,20.0]
[1725920506964,0.12549,135.21,135.11,23.11646529]
[1725920507148,0.12549,135.21,135.12,45.0]
[1725920507447,0.12549,135.21,135.13,20.0]
[1725920508058,0.12549,135.21,135.12,50.0]
[1725920508248,0.12549,135.21,135.13,20.0]
[1725920509286,6.2376,135.22,135.14,50.0]
[1725920509455,6.2376,135.22,135.15,20.0]
[1725920510184,6.2376,135.22,135.16,1.47902993]
[1725920510684,6.2376,135.22,135.15,20.0]
[1725920510970,6.2376,135.22,135.16,51.47905673]
[1725920511161,16.1757,135.23,135.17,65.0]
[1725920511361,16.1757,135.23,135.18,1.47890123]
[1725920512153,16.1757,135.23,135.17,65.0]
[1725920512651,16.1757,135.23,135.18,50.0]
[1725920512852,16.1757,135.23,135.19,20.0]
[1725920520876,16.1757,135.23,135.18,20.0]
[1725920522575,16.1757,135.23,135.17,20.0]
[1725920523368,16.1757,135.23,135.14,70.0]
[1725920524087,16.1757,135.23,135.15,1.47915665]
[1725920534175,16.1757,135.23,135.15,10.30854419]
[1725920534385,16.1757,135.23,135.16,20.0]
[1725920535373,0.12549,135.22,135.16,20.0]
[1725920535579,6.66949,135.2,135.11,18.03069846]
[1725920536075,6.544,135.2,135.14,50.0]
[1725920536284,21.5247,135.24,135.18,50.0]
[1725920536972,21.5247,135.24,135.19,20.0]
[1725920538274,21.5247,135.24,135.17,20.0]
[1725920538898,21.5247,135.24,135.15,20.0]
[1725920539072,0.12549,135.23,135.15,20.0]
[1725920539886,0.12549,135.23,135.12,72.0649]
[1725920540097,0.12549,135.23,135.14,50.0]
[1725920540395,0.12549,135.23,135.15,1.47925382]
[1725920540888,0.12549,135.23,135.14,50.0]
[1725920541096,0.12549,135.23,135.15,20.0]
[1725920543397,0.12549,135.23,135.13,20.12549]
[1725920543598,0.12549,135.23,135.14,50.0]
[1725920543775,0.12549,135.23,135.15,20.0]
[1725920544900,0.12549,135.23,135.13,20.12549]
[1725920547701,22.4991,135.2,135.12,7.72371375]
[1725920547906,22.4991,135.2,135.1,57.37838569]
[1725920547907,0.12549,135.19,135.1,57.37838569]
[1725920548280,0.12549,135.19,135.1,7.72453684]
[1725920548882,45.12549,135.19,135.1,7.72453684]
[1725920549888,15.8745,135.18,135.1,7.72453684]
[1725920550102,0.12549,135.17,135.1,7.72453684]
[1725920550603,16.72219,135.15,135.08,7.7195924]
[1725920550993,16.72219,135.15,135.04,50.0]
[1725920551317,16.72219,135.15,135.04,57.72171652]
[1725920552291,16.72219,135.15,135.05,45.0]
[1725920553206,16.72219,135.15,135.06,20.0]
[1725920554505,0.12549,135.13,135.05,20.0]
[1725920556011,0.12549,135.14,135.06,1.48024337]
[1725920556210,0.12549,135.14,135.05,20.0]
[1725920560906,16.5967,135.15,135.06,96.48014846]
[1725920561211,16.5967,135.15,135.07,20.0]
[1725920568513,0.12549,135.14,135.07,20.0]
[1725920577212,0.12549,135.14,135.08,20.0]
[1725920577415,0.12549,135.14,135.06,20.0]
[1725920580220,56.46477974,135.14,135.06,20.0]
[1725920580395,0.12549,135.12,135.06,20.0]
[1725920582323,15.9281,135.13,135.06,20.0]
[1725920585314,15.9281,135.13,135.07,1.48023901]
[1725920585522,15.9281,135.13,135.08,11.8019471]
[1725920585730,15.9281,135.13,135.09,20.0]
[1725920588028,15.9281,135.13,135.07,20.0]
[1725920592030,15.9281,135.13,135.06,20.0]
[1725920595022,15.9281,135.13,135.07,1.48028065]
[1725920595224,15.9281,135.13,135.06,70.0]
[1725920595425,15.9281,135.13,135.07,46.47998051]
[1725920595623,15.9281,135.13,135.08,20.0]
[1725920595819,15.9281,135.13,135.06,20.0]
[1725920598532,15.9281,135.13,135.07,10.32186385]
[1725920598739,15.9281,135.13,135.08,20.0]
[1725920606142,15.9281,135.13,135.09,1.47999489]
[1725920606338,15.9281,135.13,135.07,33.30086169]
[1725920609543,15.9281,135.13,135.09,10.32186385]
[1725920609746,16.4262,135.16,135.11,50.0]
[1725920609928,20.71330558,135.18,135.12,21.47956282]
[1725920610331,20.71330558,135.18,135.13,50.0]
[1725920610529,20.71330558,135.18,135.14,21.47945668]
[1725920610740,20.71330558,135.18,135.15,1.47945668]
[1725920610944,20.71330558,135.18,135.14,30.32186385]
[1725920611120,16.4262,135.19,135.14,30.32186385]
[1725920611329,15.4278,135.22,135.16,60.32186385]
[1725920611649,15.4278,135.22,135.17,20.0]
[1725920612630,15.4278,135.22,135.15,20.0]
[1725920612940,0.12549,135.21,135.13,20.0]
[1725920616327,0.12549,135.21,135.12,20.0]
[1725920616545,0.12549,135.21,135.12,80.32186385]
[1725920616752,0.12549,135.21,135.12,70.0]
[1725920617051,0.12549,135.21,135.13,10.32186385]
[1725920617654,0.12549,135.21,135.14,20.0]
[1725920619646,0.12549,135.19,135.08,64.94906913]
[1725920619852,45.12549,135.19,135.09,10.32186385]
[1725920621257,0.12549,135.17,135.09,10.32186385]
[1725920621430,0.12549,135.17,135.1,20.0]
[1725920624836,15.0242,135.18,135.11,10.32186385]
[1725920625036,15.0242,135.18,135.12,20.0]
[1725920634234,0.12549,135.17,135.12,20.0]
[1725920634442,45.12549,135.17,135.1,20.0]
[1725920634647,6.4681,135.16,135.1,20.0]
[1725920635170,0.12549,135.15,135.1,20.0]
[1725920638260,0.12549,135.15,135.09,20.0]
[1725920639659,15.3642,135.14,135.08,20.0]
[1725920639859,0.12549,135.13,135.07,7.7283164]
[1725920640233,0.12549,135.13,135.04,3.08938199]
[1725920640552,0.12549,135.13,135.05,9.75101962]
[1725920640940,0.12549,135.13,135.06,11.80218121]
[1725920641143,26.086779,135.14,135.07,20.0]
[1725920641561,0.12549,135.13,135.07,20.0]
[1725920641962,0.12549,135.13,135.04,10.77222606]
[1725920642155,0.12549,135.11,135.01,7.2204718]
[1725920642350,45.12549,135.11,135.0,10.32186385]
[1725920642547,0.12549,135.09,135.0,10.32186385]
[1725920643550,15.3849,135.1,135.03,50.0]
[1725920643746,15.3849,135.1,135.06,10.32186385]
[1725920644058,31.037428,135.12,135.07,21.48031367]
[1725920644279,31.037428,135.12,135.07,20.0]
[1725920644465,31.037428,135.12,135.05,20.0]
[1725920644640,31.037428,135.12,135.04,20.0]
[1725920644839,31.037428,135.12,135.05,1.48043162]
[1725920645058,31.037428,135.12,135.05,50.0]
[1725920645271,31.037428,135.12,135.06,20.0]
[1725920645945,31.037428,135.12,135.04,20.0]
[1725920646649,31.037428,135.12,135.03,20.0]
[1725920647052,0.12549,135.11,135.03,20.0]
[1725920647241,15.5615,135.1,135.01,20.0]
[1725920647447,0.12549,135.09,135.01,20.0]
[1725920647751,0.12549,135.09,135.0,33.09788843]
[1725920648467,0.12549,135.09,135.01,50.0]
[1725920649676,0.12549,135.09,135.02,20.0]
[1725920651858,0.12549,135.09,135.03,1.48070537]
[1725920652371,15.5615,135.1,135.03,1.48070537]
[1725920652577,15.5615,135.1,135.02,20.0]
[1725920653259,15.5615,135.1,135.02,36.12639701]
[1725920656480,15.5615,135.1,135.03,50.0]
[1725920656783,15.5615,135.1,135.04,20.0]
[1725920659068,15.5615,135.1,135.02,20.0]
[1725920662578,0.12549,135.09,135.02,20.0]
[1725920662782,6.0861,135.08,135.01,20.0]
[1725920664159,6.0861,135.08,135.01,30.33079875]
[1725920664985,6.0861,135.08,135.01,80.33079875]
[1725920665376,6.0861,135.08,135.02,1.48062132]
[1725920665865,6.0861,135.08,135.03,60.33079875]
[1725920666076,6.0861,135.08,135.04,20.0]
[1725920669772,15.5615,135.1,135.04,20.0]
[1725920674573,15.5615,135.1,135.02,30.33079875]
[1725920675082,15.5615,135.1,135.04,50.0]
[1725920675405,15.5615,135.1,135.05,21.48039624]
[1725920676090,15.5615,135.1,135.05,20.0]
[1725920676803,15.5615,135.1,135.06,1.48041893]
[1725920677385,15.5615,135.1,135.05,20.0]
[1725920679197,15.5615,135.1,135.04,20.0]
[1725920679697,15.5615,135.1,135.02,20.0]
[1725920681292,15.5615,135.1,135.01,7.71951957]
[1725920681293,0.12549,135.09,135.01,7.71951957]
[1725920681496,0.12549,135.07,134.97,77.30229017]
[1725920682002,0.12549,135.07,134.97,57.72225473]
[1725920682003,0.12549,135.05,134.97,57.72225473]
[1725920683803,0.12549,135.05,134.98,20.0]
[1725920684495,38.0728423,135.06,134.99,10.33079875]
[1725920684690,38.0728423,135.06,135.0,20.0]
[1725920685696,38.0728423,135.06,134.98,20.0]
[1725920686403,0.12549,135.05,134.98,20.0]